Workbook

Sheet Рассчитанные
A1: Вид спорта | B1: Турнир | C1: 1 | D1: 2 | E1: Прогноз | F1: Ставка | G1: Коэф. | H1: Выплата | I1: Профит | L1: БК | M1: Количество | N1: Оборот | O1: Выплата | P1: Профит | Q1: РОИ
A2: Баскетбол | B2: ЧЕ | C2: Израиль | D2: Украина | E2: П2 с уч. ОТ | F2: 50 | G2: 3.4 | H2: =IF(J2="+",F2*G2,IF(J2=0,F2,0)) -> 170 | I2: =H2-F2 -> 120 | J2: + | K2: * | L2: MAR | M2: =COUNT(F2:F99998) -> 74 | N2: =SUM(F2:F2220) -> 4276.37 | O2: =SUM(H2:H2220) -> 3638.1592 | P2: =SUM(I2:I2220)+0.02 -> -638.1908 | Q2: =P2/N2 -> -0.1492365721 | R2: Все ставки | T2: =1000+P2 -> 361.8092
A3: Баскетбол | B3: ЧЕ | C3: Франция | D3: Великобритания | E3: ТБ 145,5 | F3: 50 | G3: 1.97 | H3: 98.5 | I3: =H3-F3 -> 48.5 | J3: + | L3: MAR | M3: =COUNTIF(K:K,"*") -> 40 | N3: =SUMIF(K:K,"*",F:F) -> 2748.62 | O3: =SUMIF(K:K,"*",H:H) -> 2248.9092 | P3: =SUMIF(K:K,"*",I:I) -> -499.7108 | Q3: =P3/N3 -> -0.1818042509 | R3: Мое творчество
A4: Баскетбол | B4: ЧЕ | C4: Италия | D4: Турция | E4: 1(+5) | F4: 50 | G4: 1.97 | H4: 98.5 | I4: 48.5 | J4: + | L4: MAR | M4: =M2-M3 -> 34 | N4: =N2-N3 -> 1527.75 | O4: 1389.25 | P4: -138.48 | Q4: =P4/N4 -> -0.0906431026 | R4: Плагиат
A5: Баскетбол | B5: ЧЕ | C5: Литва | D5: Македония | E5: 1(-8) | F5: 50 | G5: 1.97 | H5: =IF(J5="+",F5*G5,IF(J5=0,F5,0)) -> 50 | I5: 0 | J5: 0 | L5: MAR
A6: Баскетбол | B6: ЧЕ | C6: Германия | D6: Бельгия | E6: 1(-5) | F6: 50 | G6: 1.97 | H6: 0 | I6: =H6-F6 -> -50 | J6: - | L6: MAR | M6: =COUNTIF(A:A,"Баскетбол") -> 48 | N6: =SUMIF(A:A,"Баскетбол",F:F) -> 2282.75 | O6: =SUMIF(A:A,"Баскетбол",H:H) -> 2024.1 | P6: =O6-N6 -> -258.65 | Q6: =P6/N6 -> -0.1133063191 | R6: Баскетбол
A7: Баскетбол | B7: ЧЕ | C7: Германия | D7: Украина | E7: П2 с уч. ОТ | F7: 50 | G7: 2.74 | H7: 137 | I7: 87 | J7: + | K7: * | L7: MAR | M7: =COUNTIF(A:A,"Футбол") -> 24 | N7: =SUMIF(A:A,"Футбол",F:F) -> 1339.5 | O7: =SUMIF(A:A,"Футбол",H:H) -> 762.25 | P7: =O7-N7 -> -577.25 | Q7: =P7/N7 -> -0.4309443822 | R7: Футбол
A8: Баскетбол | B8: ЧЕ | C8: Бельгия | D8: Великобритания | E8: 1(-5,5) | F8: 50 | G8: 1.97 | H8: 0 | I8: -50 | J8: - | K8: * | L8: MAR | M8: =COUNTIF(A:A,"Теннис") -> 1 | N8: =SUMIF(A:A,"Теннис",F:F) -> 50 | O8: =SUMIF(A:A,"Теннис",H:H) -> 0 | P8: -50 | Q8: -1 | R8: Теннис
A9: Баскетбол | B9: ЧЕ | C9: Франция | D9: Израиль | E9: 1(-13,5) | F9: 50 | G9: 1.97 | H9: 98.5 | I9: 48.5 | J9: + | K9: * | L9: MAR | M9: =COUNTIF(A:A,"Бокс") -> 1 | N9: =SUMIF(A:A,"Бокс",F:F) -> 604.12 | O9: =SUMIF(A:A,"Бокс",H:H) -> 851.8092 | P9: 247.6892 | Q9: 0.41 | R9: Бокс
A10: Баскетбол | B10: ЧЕ | C10: Черногория | D10: БиГ | E10: ТБ 152,5 | F10: 50 | G10: 1.97 | H10: 0 | I10: -50 | J10: - | K10: * | L10: MAR
A11: Баскетбол | B11: ЧЕ | C11: Франция | D11: Израиль | E11: Т1Б 79 | F11: 30 | G11: 1.9 | H11: 57 | I11: 27 | J11: + | K11: * | L11: MAR
A12: Футбол | B12: отбор к ЧМ | C12: Польша | D12: Черногория | E12: ТБ 2,5 | F12: 50 | G12: 2.3 | H12: 0 | I12: -50 | J12: - | K12: * | L12: MAR
A13: Баскетбол | B13: ЧЕ | C13: Литва | D13: Латвия | E13: Т2Б 71,5 | F13: 30 | G13: 1.9 | H13: 0 | I13: -30 | J13: - | K13: * | L13: MAR
A14: Футбол | B14: отбор к ЧМ | C14: Англия | D14: Молдова | E14: 2(+2,5) | F14: 30 | G14: 2.3 | H14: 0 | I14: -30 | J14: - | K14: * | L14: MAR
A15: Футбол | B15: отбор к ЧМ | C15: Англия | D15: Молдова | E15: Х | F15: 10 | G15: 14 | H15: 0 | I15: -10 | J15: - | K15: * | L15: MAR
A16: Баскетбол | B16: ЧЕ | C16: Черногория | D16: БиГ | E16: Б. Дубльевич Б 9,5 | F16: 50 | G16: 1.9 | H16: 95 | I16: 45 | J16: + | L16: MAR
A17: Футбол | B17: отбор к ЧМ | C17: Словения | D17: Албания | E17: Х2 | F17: 50 | G17: 2.1 | H17: 0 | I17: -50 | J17: - | K17: * | L17: PIN
A18: Баскетбол | B18: ЧЕ | C18: Испания | D18: Чехия | E18: Я. Веселы Б 12,5 | F18: 50 | G18: 2.13 | H18: =IF(J18="+",F18*G18,IF(J18=0,F18,0)) -> 0 | I18: =H18-F18 -> -50 | J18: - | L18: PIN
A19: Футбол | B19: отбор к ЧМ | C19: Украина | D19: Сан Марино | E19: 1(-5) | F19: 50 | G19: 1.9 | H19: 95 | I19: 45 | J19: + | K19: * | L19: BC
A20: Баскетбол | B20: ЧЕ | C20: Испания | D20: Чехия | E20: Я. Веселы Б 12,5 | F20: 50 | G20: 1.85 | H20: 0 | I20: -50 | J20: - | L20: BC
A21: Баскетбол | B21: ЧЕ | C21: Испания | D21: Словения | E21: 1(-7,5) | F21: 50 | G21: 1.91 | H21: 0 | I21: -50 | J21: - | L21: WH
A22: Баскетбол | B22: ЧЕ | C22: Финляндия | D22: Россия | E22: П. Коппонен Б 13,5 | F22: 50 | G22: 1.9 | H22: =IF(J22="+",F22*G22,IF(J22=0,F22,0)) -> 0 | I22: =H22-F22 -> -50 | J22: - | L22: MAR
A23: Баскетбол | B23: ЧЕ | C23: Германия | D23: Великобритания | E23: Э. Кларк Б 11,0 | F23: 50 | G23: 1.9 | H23: 95 | I23: 45 | J23: + | L23: MAR
A24: Баскетбол | B24: ЧЕ | C24: Украина | D24: Франция | E24: 1(+12,5) | F24: 50 | G24: 2.1 | H24: =IF(J24="+",F24*G24,IF(J24=0,F24,0)) -> 105 | I24: =H24-F24 -> 55 | J24: + | K24: * | L24: PIN
A25: Баскетбол | B25: ЧЕ | C25: Италия | D25: Швеция | E25: П2 с уч. ОТ | F25: 25 | G25: 4.4 | H25: 0 | I25: -25 | J25: - | K25: * | L25: MAR
A26: Баскетбол | B26: ЧЕ | C26: Италия | D26: Швеция | E26: 2(+8,5) | F26: 70 | G26: 2 | H26: 140 | I26: 70 | J26: + | K26: * | L26: MAR
A27: Баскетбол | B27: ЧЕ | C27: Россия | D27: Турция | E27: ТБ 148,5 | F27: 50 | G27: 1.952 | H27: 97.6 | I27: 47.6 | J27: + | K27: * | L27: MAR
A28: Баскетбол | B28: ЧЕ | C28: Франция | D28: Бельгия | E28: ТБ 141,5 | F28: 50 | G28: 1.97 | H28: 98.5 | I28: 48.5 | J28: + | K28: * | L28: MAR
A29: Баскетбол | B29: ЧЕ | C29: Сербия | D29: Черногория | E29: ТБ 144,5 | F29: 50 | G29: 1.97 | H29: 98.5 | I29: 48.5 | J29: + | K29: * | L29: MAR
A30: Баскетбол | B30: ЧЕ | C30: Словения | D30: Польша | E30: ТБ 141,5 | F30: 50 | G30: 1.96 | H30: 0 | I30: -50 | J30: - | K30: * | L30: MAR
A31: Баскетбол | B31: ЧЕ | C31: Сербия | D31: Черногория | E31: Н. Бьелица М 10,5 | F31: 50 | G31: 1.9 | H31: =IF(J31="+",F31*G31,IF(J31=0,F31,0)) -> 0 | I31: =H31-F31 -> -50 | J31: - | K31: * | L31: MAR
A32: Баскетбол | B32: ЧЕ | C32: Сербия | D32: Черногория | E32: Н. Недович М 10,5 | F32: 50 | G32: 1.85 | H32: 92.5 | I32: 42.5 | J32: + | K32: * | L32: BC
A33: Баскетбол | B33: ЧЕ | C33: Франция | D33: Бельгия | E33: Т. Паркер М 16,5 | F33: 50 | G33: 1.917 | H33: 0 | I33: -50 | J33: - | K33: * | L33: PIN
A34: Баскетбол | B34: ЧЕ | C34: Словения | D34: Польша | E34: Г. Драгич М 13,5 | F34: 50 | G34: 1.855 | H34: 50 | I34: 0 | J34: 0 | K34: * | L34: PIN
A35: Теннис | B35: Хард | C35: Р. Надаль | D35: Н. Джокович | E35: П2 | F35: 50 | G35: 2.32 | H35: 0 | I35: -50 | J35: - | K35: * | L35: UB
A36: Футбол | B36: отбор к ЧМ | C36: Австрия | D36: Ирландия | E36: ТБ 2,5 | F36: 50 | G36: 2.02 | H36: 0 | I36: -50 | J36: - | L36: MAR
A37: Футбол | B37: отбор к ЧМ | C37: Украина | D37: Англия | E37: П1 | F37: 95 | G37: 3 | H37: 0 | I37: -95 | J37: - | K37: * | L37: BC
A38: Футбол | B38: отбор к ЧМ | C38: Румыния | D38: Турция | E38: ТБ 2,5 | F38: 50 | G38: 2.07 | H38: 0 | I38: -50 | J38: - | L38: PIN
A39: Футбол | B39: отбор к ЧМ | C39: Уэльс | D39: Сербия | E39: П1 | F39: 30 | G39: 3.69 | H39: 0 | I39: -30 | J39: - | L39: PIN
A40: Футбол | B40: отбор к ЧМ | C40: Македония | D40: Шотландия | E40: ТБ 2,5 | F40: 25 | G40: 2.61 | H40: 65.25 | I40: 40.25 | J40: + | L40: PIN
A41: Футбол | B41: отбор к ЧМ | C41: Уругвай | D41: Колумбия | E41: ТБ 2,5 | F41: 50 | G41: 2.3 | H41: =IF(J41="+",F41*G41,IF(J41=0,F41,0)) -> 0 | I41: =H41-F41 -> -50 | J41: - | L41: MAR
A42: Баскетбол | B42: ЧЕ | C42: Латвия | D42: Украина | E42: 1 М 74,5 | F42: 50 | G42: 1.9 | H42: 0 | I42: -50 | J42: - | K42: * | L42: BC
A43: Баскетбол | B43: ЧЕ | C43: Латвия | D43: Украина | E43: П2 | F43: 50 | G43: 2.46 | H43: 0 | I43: -50 | J43: - | K43: * | L43: MAR
A44: Баскетбол | B44: ЧЕ | C44: Латвия | D44: Украина | E44: live П2 3ч | F44: 50 | G44: 1.88 | H44: =IF(J44="+",F44*G44,IF(J44=0,F44,0)) -> 0 | I44: =H44-F44 -> -50 | J44: - | K44: * | L44: MAR
A45: Баскетбол | B45: ЧЕ | C45: Латвия | D45: Украина | E45: live 1 М 17,5 3ч | F45: 25 | G45: 1.87 | H45: =IF(J45="+",F45*G45,IF(J45=0,F45,0)) -> 0 | I45: =H45-F45 -> -25 | J45: - | K45: * | L45: MAR
A46: Баскетбол | B46: ЧЕ | C46: Сербия | D46: Бельгия | E46: ТМ 139,5 | F46: 50 | G46: 2.4 | H46: 0 | I46: -50 | J46: - | L46: MAR
A47: Баскетбол | B47: ЧЕ | C47: Франция | D47: Литва | E47: Б. Диаo М 8,5 | F47: 50 | G47: 1.9 | H47: =IF(J47="+",F47*G47,IF(J47=0,F47,0)) -> 95 | I47: =H47-F47 -> 45 | J47: + | L47: MAR
A48: Баскетбол | B48: ЧА | C48: Пуэрто-Рико | D48: Мексика | E48: 1(-7,5) | F48: 65.25 | G48: 2.07 | H48: 0 | I48: -65.25 | J48: - | L48: PIN
A49: Футбол | B49: УПЛ | C49: Карпаты | D49: Шахтер | E49: П1 | F49: 10 | G49: 14 | H49: =IF(J49="+",F49*G49,IF(J49=0,F49,0)) -> 140 | I49: =H49-F49 -> 130 | J49: + | L49: MAR
A50: Баскетбол | B50: ЧЕ | C50: Литва | D50: Бельгия | E50: 2(+13,5) | F50: 50 | G50: 2.05 | H50: 0 | I50: -50 | J50: - | K50: * | L50: PIN
A51: Баскетбол | B51: ЧЕ | C51: Сербия | D51: Украина | E51: 2(+11,5) | F51: 50 | G51: 1.9 | H51: 95 | I51: 45 | J51: + | K51: * | L51: UB
A52: Баскетбол | B52: ЧЕ | C52: Франция | D52: Латвия | E52: 2(+9,5) | F52: 50 | G52: 1.94 | H52: 0 | I52: -50 | J52: - | K52: * | L52: MAR
A53: Баскетбол | B53: ЧЕ | C53: Франция | D53: Латвия | E53: ТБ 148,5 | F53: 50 | G53: 1.97 | H53: =IF(J53="+",F53*G53,IF(J53=0,F53,0)) -> 0 | I53: =H53-F53 -> -50 | J53: - | L53: MAR
A54: Баскетбол | B54: ЧЕ | C54: Франция | D54: Латвия | E54: Яничченокс Б 11,5 | F54: 42.5 | G54: 1.85 | H54: 0 | I54: -42.5 | J54: - | L54: BC
A55: Футбол | B55: УПЛ | C55: Арсенал | D55: Волынь | E55: П2 | F55: 394.5 | G55: 4.65 | H55: 0 | I55: -394.5 | J55: - | K55: * | L55: MAR
A56: Баскетбол | B56: ЧЕ | C56: Латвия | D56: Бельгия | E56: П2 с уч. ОТ | F56: 10 | G56: 6.25 | H56: =IF(J56="+",F56*G56,IF(J56=0,F56,0)) -> 62.5 | I56: =H56-F56 -> 52.5 | J56: + | K56: * | L56: UB
A57: Баскетбол | B57: ЧЕ | C57: Испания | D57: Сербия | E57: 4ч ТБ 35,5 | F57: 50 | G57: 1.9 | H57: 95 | I57: 45 | J57: + | L57: MAR
A58: Баскетбол | B58: ЧЕ | C58: Франция | D58: Словения | E58: 4ч ТБ 36 | F58: 50 | G58: 1.9 | H58: 95 | I58: 45 | J58: + | L58: MAR
A59: Футбол | B59: ЛЧ | C59: Атлетико | D59: Зенит | E59: 1 (-1,5) | F59: 50 | G59: 2.7 | H59: 135 | I59: 85 | J59: + | L59: MAR
A60: Баскетбол | B60: ЧЕ | C60: Хорватия | D60: Украина | E60: П2 с уч. ОТ | F60: 30 | G60: 4.4 | H60: 0 | I60: -30 | J60: - | K60: * | L60: MAR
A61: Баскетбол | B61: ЧЕ | C61: Литва | D61: Италия | E61: ТМ 144,5 | F61: 50 | G61: 1.952 | H61: 0 | I61: -50 | J61: - | L61: MAR
A62: Баскетбол | B62: ЧЕ | C62: Словения | D62: Сербия | E62: 2 (-1,5) | F62: 50 | G62: 2.64 | H62: =IF(J62="+",F62*G62,IF(J62=0,F62,0)) -> 0 | I62: =H62-F62 -> -50 | J62: - | K62: * | L62: MAR
A63: Баскетбол | B63: ЧЕ | C63: Словения | D63: Сербия | E63: 1 М 75 | F63: 50 | G63: 1.9 | H63: 0 | I63: -50 | J63: - | L63: MAR
A64: Футбол | B64: ЛЕ | C64: Динамо З | D64: Черноморец | E64: Х2 | F64: 50 | G64: 2.08 | H64: =IF(J64="+",F64*G64,IF(J64=0,F64,0)) -> 104 | I64: =H64-F64 -> 54 | J64: + | L64: MAR
A65: Футбол | B65: РПЛ | C65: Волга НН | D65: Анжи | E65: ТБ 2,5 | F65: 50 | G65: 2.08 | H65: 104 | I65: 54 | J65: + | L65: MAR
A66: Футбол | B66: АПЛ | C66: Ливерпуль | D66: Саутгемптон | E66: Х | F66: 25 | G66: 4.15 | H66: 0 | I66: -25 | J66: - | L66: MAR
A67: Футбол | B67: Серия А | C67: Милан | D67: Наполи | E67: 2(-1,5) | F67: 20 | G67: 5.9 | H67: 0 | I67: -20 | J67: - | L67: MAR
A68: Футбол | B68: Примера | C68: Сельта | D68: Вильярреал | E68: ТБ 2,5 | F68: 50 | G68: 1.94 | H68: 0 | I68: -50 | J68: - | L68: MAR
A69: Баскетбол | B69: ЧЕ | C69: Франция | D69: Литва | E69: П2 с уч. ОТ | F69: 55 | G69: 2.52 | H69: 0 | I69: -55 | J69: - | K69: * | L69: MAR
A70: Футбол | B70: АПЛ | C70: Арсенал | D70: Сток | E70: П2 | F70: 10 | G70: 12 | H70: 0 | I70: -10 | J70: - | L70: WH
A71: Футбол | B71: ДСЛ | C71: Вестшеллан | D71: Эсбьерг | E71: П1 | F71: 50 | G71: 3.45 | H71: =IF(J71="+",F71*G71,IF(J71=0,F71,0)) -> 0 | I71: =H71-F71 -> -50 | J71: - | L71: MAR
A72: Футбол | B72: РПЛ | C72: Амкар | D72: Ростов | E72: П1 | F72: 50 | G72: 2.38 | H72: 119 | I72: 69 | J72: + | L72: MAR
A73: Футбол | B73: Примера | C73: Вальядолид | D73: Малага | E73: П2 | F73: 50 | G73: 2.85 | H73: 0 | I73: -50 | J73: - | K73: * | L73: PIN
A74: Футбол | B74: ЛЧ | C74: Селтик | D74: Барселона | E74: 1Т: обе забьют | F74: 40 | G74: 4.55 | H74: 0 | I74: -40 | J74: - | K74: * | L74: MAR
A75: Бокс | C75: Кличко | D75: Поветкин | E75: П1 | F75: 604.12 | G75: 1.41 | H75: 851.8092 | I75: 247.6892 | J75: + | K75: * | L75: MAR
